[Event "CZE Extraliga 2019-20"]
[Site "Czech Republic"]
[Date "2020.01.26"]
[Round "6"]
[White "Markowski, Tomasz"]
[Black "Miesbauer, Jan"]
[Result "1/2-1/2"]
[ECO "A00"]
[WhiteElo "2554"]
[BlackElo "2397"]
[Annotator "ChessBase"]
[PlyCount "120"]
[EventDate "2019.09.15"]
[EventType "team-tourn"]
[EventCountry "CZE"]
[SourceTitle "playchess.com"]
[Source "ChessBase"]
[SourceQuality "1"]
[TimeControl "40/5400+30:1800+30"]

1. g3 {[%emt 0:00:06]} g6 {[%emt 0:00:07]} 2. Bg2 {[%emt 0:00:04]} Bg7 {[%emt 0:00:06]} 3. c4 {[%emt 0:00:03]} Nf6 {[%emt 0:01:47]} 4. Nc3 {[%emt 0:00:04]} O-O {[%emt 0:00:25]} 5. d3 {[%emt 0:00:02]} c6 {[%emt 0:01:27]} 6. e4 {[%emt 0:00:05]} e5 {[%emt 0:00:21]} 7. Nge2 {[%emt 0:00:05]} a6 {[%emt 0:08:10]} 8. O-O {[%emt 0:00:24]} b5 {[%emt 0:00:38]} 9. h3 {[%emt 0:01:31]} d6 {[%emt 0:09:35]} 10. Be3 {[%emt 0:01:31]} Nbd7 {[%emt 0:01:01]} 11. a3 {[%emt 0:01:22]} Bb7 {[%emt 0:01:50]} 12. Qc2 {[%emt 0:01:30]} Re8 {[%emt 0:00:30]} 13. Rad1 {[%emt 0:02:25]} Rc8 {[%emt 0:01:26]} 14. Qb1 {[%emt 0:01:03]} h5 {[%emt 0:13:08]} 15. b4 {[%emt 0:02:33]} Nf8 {[%emt 0:08:12]} 16. Qa2 {[%emt 0:01:10]} h4 {[%emt 0:01:54]} 17. g4 {[%emt 0:00:57]} Ne6 {[%emt 0:00:24]} 18. d4 {[%emt 0:07:33]} exd4 {[%emt 0:01:49]} 19. Nxd4 {[%emt 0:00:10]} Qe7 {[%emt 0:02:10]} 20. Nde2 {[%emt 0:03:47]} Nd7 {[%emt 0:04:27]} 21. a4 {[%emt 0:04:27]} bxc4 {[%emt 0:01:30]} 22. Qxc4 {[%emt 0:00:28]} Ne5 {[%emt 0:00:52]} 23. Qb3 {[%emt 0:01:09]} g5 {[%emt 0:00:54]} 24. f4 {[%emt 0:03:41]} gxf4 {[%emt 0:00:07]} 25. Nxf4 {[%emt 0:00:07]} Nxf4 {[%emt 0:00:12]} 26. Bxf4 {[%emt 0:00:09]} Rcd8 {[%emt 0:00:43]} 27. Be3 {[%emt 0:02:12]} Bc8 {[%emt 0:04:02]} 28. Ne2 {[%emt 0:05:06]} Be6 {[%emt 0:01:21]} 29. Qc2 {[%emt 0:01:50]} Rb8 {[%emt 0:02:33]} 30. Nd4 {[%emt 0:00:59]} c5 {[%emt 0:04:38]} 31. bxc5 {[%emt 0:01:29]} Nc4 {[%emt 0:02:39]} 32. Bf2 {[%emt 0:06:44]} Rb2 {[%emt 0:04:53]} 33. Qc1 {[%emt 0:05:15]} dxc5 {[%emt 0:02:28]} 34. Nxe6 {[%emt 0:01:29]} Qxe6 {[%emt 0:00:06]} 35. Rd5 {[%emt 0:02:10]} Ne5 {[%emt 0:07:34]} 36. Qxc5 {[%emt 0:00:21]} Rc8 {[%emt 0:00:58]} 37. Qe3 {[%emt 0:02:34]} Rcc2 {[%emt 0:02:19]} 38. Qg5 {[%emt 0:01:23]} Qf6 {[%emt 0:01:16]} 39. Qf5 {[%emt 0:04:20]} Nc4 {[%emt 0:06:15]} 40. Qc8+ {[%emt 0:06:06]} Bf8 {[%emt 0:01:34]} 41. Rd8 {[%emt 0:43:09]} Rxf2 {[%emt 0:12:25]} 42. Rxf8+ {[%emt 0:00:00]} Kh7 {[%emt 0:00:07]} 43. Rh8+ {[%emt 0:00:00]} Qxh8 {[%emt 0:00:07]} 44. Qxh8+ {[%emt 0:00:00]} Kxh8 {[%emt 0:00:06]} 45. Rxf2 {[%emt 0:00:00]} Rxf2 {[%emt 0:02:18]} 46. Kxf2 {[%emt 0:00:00]} Nb6 {[%emt 0:04:32]} 47. a5 {[%emt 0:00:00]} Nc4 {[%emt 0:00:05]} 48. e5 {[%emt 0:00:00]} Kg7 {[%emt 0:00:13]} 49. Bd5 {[%emt 0:00:00]} Nxe5 {[%emt 0:00:12]} 50. Ke3 {[%emt 0:00:00]} Kg6 {[%emt 0:07:23]} 51. Kd4 {[%emt 0:00:00]} Kf6 {[%emt 0:00:11]} 52. Bb7 {[%emt 0:00:00]} Ke6 {[%emt 0:00:42]} 53. Kc5 {[%emt 0:00:00]} Nd7+ {[%emt 0:03:15]} 54. Kc6 {[%emt 0:00:00]} Ne5+ {[%emt 0:00:05]} 55. Kb6 {[%emt 0:00:00]} Nc4+ {[%emt 0:00:55]} 56. Kxa6 {[%emt 0:00:00]} f6 {[%emt 0:02:45]} 57. Kb5 {[%emt 0:00:00]} Nxa5 {[%emt 0:01:27]} 58. Kxa5 {[%emt 0:00:00]} Ke5 {[%emt 0:00:10]} 59. Kb5 {[%emt 0:00:00]} f5 {[%emt 0:03:09]} 60. Bg2 {[%emt 0:00:00]} Kf4 {[%emt 0:00:20]} 1/2-1/2

[Event "CZE Extraliga 2019-20"]
[Site "Czech Republic"]
[Date "2020.01.26"]
[Round "6"]
[White "Cvek, Robert"]
[Black "Sergeev, Vladimir"]
[Result "1/2-1/2"]
[ECO "A05"]
[WhiteElo "2517"]
[BlackElo "2399"]
[Annotator "ChessBase"]
[PlyCount "94"]
[EventDate "2019.09.15"]
[EventType "team-tourn"]
[EventCountry "CZE"]
[SourceTitle "playchess.com"]
[Source "ChessBase"]
[SourceQuality "1"]
[TimeControl "40/5400+30:1800+30"]

1. Nf3 {[%emt 0:00:00]} Nf6 {[%emt 0:00:00]} 2. c4 {[%emt 0:00:04]} c5 {[%emt 0:00:24]} 3. Nc3 {[%emt 0:00:18]} g6 {[%emt 0:01:29]} 4. g3 {[%emt 0:02:18]} Nc6 {[%emt 0:00:12]} 5. d4 {[%emt 0:00:23]} cxd4 {[%emt 0:00:06]} 6. Nxd4 {[%emt 0:00:04]} d6 {[%emt 0:00:22]} 7. Bg2 {[%emt 0:00:50]} Bd7 {[%emt 0:00:13]} 8. O-O {[%emt 0:00:42]} Bg7 {[%emt 0:00:06]} 9. b3 {[%emt 0:02:06]} O-O {[%emt 0:00:28]} 10. Bb2 {[%emt 0:00:09]} Qa5 {[%emt 0:02:09]} 11. e3 {[%emt 0:04:16]} Rfc8 {[%emt 0:00:31]} 12. Qd2 {[%emt 0:08:39]} a6 {[%emt 0:01:43]} 13. Rfd1 {[%emt 0:05:36]} Rab8 {[%emt 0:00:31]} 14. Nd5 {[%emt 0:12:26]} Qxd2 {[%emt 0:01:32]} 15. Nxf6+ {[%emt 0:00:26]} Bxf6 {[%emt 0:00:16]} 16. Rxd2 {[%emt 0:00:03]} Nxd4 {[%emt 0:01:01]} 17. Bxd4 {[%emt 0:00:05]} Bxd4 {[%emt 0:00:18]} 18. exd4 {[%emt 0:00:04]} Bf5 {[%emt 0:12:53]} 19. Rc1 {[%emt 0:03:29]} Rc7 {[%emt 0:01:27]} 20. b4 {[%emt 0:03:38]} b6 {[%emt 0:00:29]} 21. h3 {[%emt 0:07:14]} Rbc8 {[%emt 0:11:20]} 22. Bf1 {[%emt 0:02:31]} h5 {[%emt 0:07:38]} 23. f3 {[%emt 0:04:54]} g5 {[%emt 0:06:21]} 24. g4 {[%emt 0:05:33]} hxg4 {[%emt 0:01:17]} 25. hxg4 {[%emt 0:00:03]} Bg6 {[%emt 0:02:19]} 26. Rc3 {[%emt 0:02:32]} Kg7 {[%emt 0:05:16]} 27. Rd1 {[%emt 0:04:56]} f6 {[%emt 0:10:59]} 28. Rdc1 {[%emt 0:01:29]} a5 {[%emt 0:17:39]} 29. bxa5 {[%emt 0:08:50]} bxa5 {[%emt 0:00:10]} 30. c5 {[%emt 0:00:13]} dxc5 {[%emt 0:05:10]} 31. Rxc5 {[%emt 0:01:19]} Rxc5 {[%emt 0:00:13]} 32. dxc5 {[%emt 0:00:55]} Be8 {[%emt 0:01:11]} 33. Bd3 {[%emt 0:04:41]} Bc6 {[%emt 0:02:02]} 34. Kf2 {[%emt 0:00:33]} Bd5 {[%emt 0:05:28]} 35. a4 {[%emt 0:04:19]} Kf7 {[%emt 0:00:16]} 36. Ke3 {[%emt 0:00:46]} Rc7 {[%emt 0:02:24]} 37. Be4 {[%emt 0:03:53]} Bb3 {[%emt 0:00:07]} 38. Kd4 {[%emt 0:00:38]} e5+ {[%emt 0:00:27]} 39. Ke3 {[%emt 0:01:19]} Ke6 {[%emt 0:00:29]} 40. Rb1 {[%emt 0:02:23]} Bxa4 {[%emt 0:02:24]} 41. Ra1 {[%emt 0:34:12]} Bb5 {[%emt 0:30:09]} 42. Rxa5 {[%emt 0:00:19]} Rxc5 {[%emt 0:00:13]} 43. Bd3 {[%emt 0:01:01]} Bxd3 {[%emt 0:00:10]} 44. Rxc5 {[%emt 0:00:04]} Bg6 {[%emt 0:00:08]} 45. Rc6+ {[%emt 0:00:30]} Ke7 {[%emt 0:00:10]} 46. Rc7+ {[%emt 0:01:45]} Ke6 {[%emt 0:00:10]} 47. Rc6+ {[%emt 0:00:22]} Ke7 {[%emt 0:00:05] Ke4} 1/2-1/2

[Event "CZE Extraliga 2019-20"]
[Site "Czech Republic"]
[Date "2020.01.26"]
[Round "6"]
[White "DPP5 Frolov Artur IM"]
[Black "POR5 Jakubowski Krzysztof GM"]
[Result "1-0"]
[ECO "B95"]
[WhiteElo "2425"]
[BlackElo "2509"]
[Annotator "ChessBase"]
[PlyCount "43"]
[EventDate "2019.09.15"]
[EventType "team-tourn"]
[EventCountry "CZE"]
[SourceTitle "playchess.com"]
[Source "ChessBase"]
[SourceQuality "1"]
[TimeControl "40/5400+30:1800+30"]

1. e4 {[%emt 0:00:00]} c5 {[%emt 0:00:00]} 2. Nf3 {[%emt 0:00:00]} d6 {[%emt 0:00:00]} 3. d4 {[%emt 0:00:06]} cxd4 {[%emt 0:00:00]} 4. Nxd4 {[%emt 0:00:03]} Nf6 {[%emt 0:00:05]} 5. Nc3 {[%emt 0:00:04]} a6 {[%emt 0:00:09]} 6. Bg5 {[%emt 0:00:30]} e6 {[%emt 0:00:18]} 7. Qe2 {[%emt 0:03:43]} b5 {[%emt 0:02:01]} 8. O-O-O {[%emt 0:04:29]} Qc7 {[%emt 0:02:23]} 9. f4 {[%emt 0:10:51]} b4 {[%emt 0:01:48]} 10. Nd5 {[%emt 0:01:21]} exd5 {[%emt 0:00:31]} 11. exd5+ {[%emt 0:00:14]} Be7 {[%emt 0:01:03]} 12. Bxf6 {[%emt 0:02:33]} gxf6 {[%emt 0:00:07]} 13. Qh5 {[%emt 0:03:59]} f5 {[%emt 0:13:27]} 14. Bd3 {[%emt 0:14:27]} Bf6 {[%emt 0:23:47]} 15. Rhe1+ {[%emt 0:06:52]} Kd8 {[%emt 0:00:23]} 16. Bxf5 {[%emt 0:00:57]} Ra7 {[%emt 0:01:34]} 17. Qh6 {[%emt 0:20:32]} Be7 {[%emt 0:01:22]} 18. Qg7 {[%emt 0:01:37]} Rf8 {[%emt 0:00:16]} 19. Bxc8 {[%emt 0:01:25]} Qc4 {[%emt 0:07:42]} 20. Rxe7 {[%emt 0:01:26]} Rxe7 {[%emt 0:00:07]} 21. Qxf8+ {[%emt 0:00:12]} Re8 {[%emt 0:00:04]} 22. Qxf7 {[%emt 0:00:42]} 1-0

[Event "CZE Extraliga 2019-20"]
[Site "Czech Republic"]
[Date "2020.01.26"]
[Round "6"]
[White "Kanovsky, David"]
[Black "Hausner, Ivan"]
[Result "1/2-1/2"]
[ECO "B67"]
[WhiteElo "2424"]
[BlackElo "2382"]
[Annotator "NA"]
[PlyCount "99"]
[EventDate "2019.09.15"]
[EventType "team-tourn"]
[EventCountry "CZE"]
[SourceTitle "playchess.com"]
[Source "ChessBase"]
[SourceQuality "1"]
[TimeControl "40/5400+30:1800+30"]

1. e4 {[%emt 0:00:00]} c5 {[%emt 0:00:00]} 2. Nf3 {[%emt 0:00:00]} d6 {[%emt 0:00:00]} 3. d4 {[%emt 0:00:26]} cxd4 {[%emt 0:00:00]} 4. Nxd4 {[%emt 0:00:05]} Nf6 {[%emt 0:00:00]} 5. Nc3 {[%emt 0:00:09]} Nc6 {[%emt 0:00:00]} 6. Bg5 {[%emt 0:01:12]} a6 {[%emt 0:00:00]} 7. Qd2 Bd7 {[%emt 0:00:00]} 8. O-O-O {[%emt 0:02:30]} e6 {[%emt 0:00:00]} 9. f3 {[%emt 0:03:43]} Be7 {[%emt 0:00:08]} 10. h4 {[%emt 0:04:24]} h5 {[%emt 0:00:05] B67: Sicilian: Richter-Rauzer: 7...a6 8 0-0-0 Bd7, lines without 9 f4 Be7} 11. Kb1 {[%emt 0:01:16]} Qc7 {[%emt 0:03:21]} 12. Nb3 $146 {[%emt 0:14:35]} ({Predecessor:} 12. f4 b5 13. a3 b4 14. axb4 Nxb4 15. Nb3 Bc6 16. Bd3 O-O 17. Qe2 {0-1 (57) Klein,D (2492)-Bacrot,E (2684) chess.com INT 2019}) 12... Ne5 {[%emt 0:05:21]} 13. Be2 {[%emt 0:07:00]} b5 {[%emt 0:04:33]} 14. f4 {[%emt 0:03:20]} b4 {[%emt 0:03:06]} (14... Nc4 $14 15. Bxc4 bxc4) 15. fxe5 {[%emt 0:04:23]} bxc3 {[%emt 0:00:07]} 16. exd6 {[%emt 0:00:26]} cxd2 {[%emt 0:00:09]} 17. dxc7 {[%emt 0:00:04]} Nxe4 {[%emt 0:07:08] [#]} (17... Bd6 $16 {was called for.}) 18. Bf3 $1 {[%emt 0:00:30]} ({Less strong is} 18. Nxd2 Nf2 $14) 18... f5 {[%emt 0:00:04]} 19. Nxd2 {[%emt 0:10:47]} (19. Bf4 $18) 19... Bxg5 {[%emt 0:05:20]} 20. hxg5 {[%emt 0:02:20]} Bc6 $2 {[%emt 0:04:25]} (20... Rc8 $16) 21. Rhe1 {[%emt 0:13:13]} Nxd2+ {[%emt 0:13:18]} 22. Rxd2 {[%emt 0:00:06]} Bxf3 {[%emt 0:00:04]} 23. gxf3 {[%emt 0:00:31]} Kf7 {[%emt 0:00:28]} 24. f4 {[%emt 0:13:47]} h4 {[%emt 0:02:15]} 25. b3 {[%emt 0:06:04]} h3 {[%emt 0:03:44]} 26. Red1 {[%emt 0:01:08]} h2 {[%emt 0:01:05]} 27. Rh1 {[%emt 0:00:48]} Rac8 {[%emt 0:00:37]} 28. Rhxh2 {[%emt 0:04:49]} Rxh2 {[%emt 0:00:07]} 29. Rxh2 {[%emt 0:00:01]} Rxc7 {[%emt 0:00:02]} 30. Rd2 $14 {[%emt 0:01:25]} (30. c4 $16) 30... Kg6 {[%emt 0:09:23]} 31. Rd6 {[%emt 0:04:19]} Kh5 {[%emt 0:00:06]} 32. Rxa6 {[%emt 0:00:59]} e5 {[%emt 0:01:23]} 33. fxe5 {[%emt 0:00:18]} f4 {[%emt 0:00:09]} 34. Kc1 {[%emt 0:01:40]} f3 {[%emt 0:00:07]} 35. Ra8 {[%emt 0:00:40]} Rf7 {[%emt 0:01:01]} 36. e6 {[%emt 0:00:01]} f2 {[%emt 0:00:24]} 37. exf7 {[%emt 0:00:11]} f1=Q+ {[%emt 0:00:08]} 38. Kb2 {[%emt 0:00:03]} Qxf7 {[%emt 0:00:09]} 39. Ra5 {[%emt 0:00:06]} Qf2 {[%emt 0:01:32]} 40. b4 {[%emt 0:01:39]} Qd4+ {[%emt 0:01:57]} 41. Kb3 {[%emt 0:01:41]} Qa1 {[%emt 0:00:50]} 42. Rc5 {[%emt 0:10:20]} Qb1+ {[%emt 0:00:46]} 43. Ka4 {[%emt 0:01:31]} Qxa2+ {[%emt 0:00:14]} 44. Kb5 {[%emt 0:00:01]} Qa7 {[%emt 0:02:35]} 45. c4 {[%emt 0:00:29]} Qb7+ {[%emt 0:01:03]} 46. Ka4 {[%emt 0:00:07]} Qa8+ {[%emt 0:01:19]} 47. Kb3 {[%emt 0:00:40]} Qf3+ {[%emt 0:00:07]} 48. Ka4 {[%emt 0:00:27]} Qa8+ {[%emt 0:00:07]} 49. Kb3 {[%emt 0:00:20]} Qf3+ {[%emt 0:00:06]} 50. Ka4 {[%emt 0:00:04]} 1/2-1/2

[Event "CZE Extraliga 2019-20"]
[Site "Czech Republic"]
[Date "2020.01.26"]
[Round "6"]
[White "Kourousis, Epaminondas"]
[Black "Bures, Jaroslav"]
[Result "1/2-1/2"]
[ECO "A06"]
[WhiteElo "2389"]
[BlackElo "2388"]
[Annotator "NA"]
[PlyCount "140"]
[EventDate "2019.09.15"]
[EventType "team-tourn"]
[EventCountry "CZE"]
[SourceTitle "playchess.com"]
[Source "ChessBase"]
[SourceQuality "1"]
[TimeControl "40/5400+30:1800+30"]

1. Nf3 {[%emt 0:00:00]} d5 {[%emt 0:00:00]} 2. g3 {[%emt 0:00:00]} g6 {[%emt 0:00:00]} 3. Bg2 {[%emt 0:00:03]} Bg7 {[%emt 0:00:00]} 4. c4 {[%emt 0:01:02]} dxc4 {[%emt 0:02:29]} 5. Na3 {[%emt 0:08:59]} Be6 {[%emt 0:06:13]} 6. Qc2 {[%emt 0:22:51]} Nc6 {[%emt 0:05:25]} 7. Nxc4 {[%emt 0:00:43]} Nh6 {[%emt 0:05:59]} 8. O-O {[%emt 0:04:01]} O-O {[%emt 0:00:30]} 9. Ne3 {[%emt 0:05:39]} Qd7 {[%emt 0:10:44]} 10. Ng5 {[%emt 0:08:49]} Nd4 $11 {[%emt 0:00:05]} 11. Qd3 {[%emt 0:06:50]} Rfd8 {[%emt 0:10:05]} 12. Re1 {[%emt 0:09:12]} Qa4 {[%emt 0:14:02]} 13. Nxe6 {[%emt 0:01:45]} fxe6 {[%emt 0:10:28]} 14. Qb1 {[%emt 0:07:15]} Nhf5 {[%emt 0:02:49]} 15. d3 {[%emt 0:01:04]} Qb4 {[%emt 0:03:57]} 16. Kf1 {[%emt 0:00:47]} Nxe3+ {[%emt 0:00:33]} 17. Bxe3 {[%emt 0:00:09]} Nf5 {[%emt 0:00:02]} 18. Bc1 {[%emt 0:03:27]} c5 {[%emt 0:15:41]} 19. a3 {[%emt 0:00:48]} Qb6 {[%emt 0:02:10]} 20. Qa2 {[%emt 0:09:38]} Nd4 {[%emt 0:01:06]} 21. Rb1 {[%emt 0:03:16]} Nb3 {[%emt 0:01:22]} 22. Bf4 {[%emt 0:02:42]} Rd4 {[%emt 0:03:37]} 23. Be3 {[%emt 0:00:38]} Ra4 {[%emt 0:00:31]} 24. Rbd1 {[%emt 0:01:14]} Rd8 {[%emt 0:01:13]} 25. Qb1 {[%emt 0:00:41]} Ra5 {[%emt 0:00:33]} 26. Qc2 {[%emt 0:00:33]} Rb5 {[%emt 0:00:02]} 27. Kg1 {[%emt 0:00:37]} Nd4 {[%emt 0:01:28]} 28. Bxd4 {[%emt 0:00:17]} Bxd4 {[%emt 0:00:03]} 29. Rb1 {[%emt 0:00:55]} Bxb2 {[%emt 0:01:03]} 30. e3 {[%emt 0:00:33]} Bxa3 {[%emt 0:01:29]} 31. Rxb5 Qxb5 32. Qa2 {[%emt 0:00:30]} Qxd3 {[%emt 0:00:59]} 33. Qxe6+ {[%emt 0:00:44]} Kf8 {[%emt 0:00:05]} 34. Bxb7 {[%emt 0:00:35]} Bb4 {[%emt 0:00:23]} 35. Rc1 {[%emt 0:00:26]} Qf5 {[%emt 0:00:37]} 36. Qxf5+ {[%emt 0:00:46]} gxf5 {[%emt 0:00:02]} 37. Ba6 {[%emt 0:00:21]} e6 {[%emt 0:00:42]} 38. Rc2 {[%emt 0:00:36]} Ke7 {[%emt 0:00:20]} 39. Kf1 {[%emt 0:00:31]} Rd1+ {[%emt 0:00:23]} 40. Ke2 {[%emt 0:00:03]} Ra1 {[%emt 0:00:06]} 41. Bc4 {[%emt 0:30:41]} a5 {[%emt 0:30:18]} 42. f4 {[%emt 0:00:00]} a4 {[%emt 0:00:00]} 43. Kf3 {[%emt 0:00:00]} a3 {[%emt 0:00:00]} 44. e4 {[%emt 0:00:00]} fxe4+ {[%emt 0:00:00]} 45. Kxe4 {[%emt 0:00:00]} Rd1 {[%emt 0:00:00]} 46. Kf3 {[%emt 0:00:00]} Rd4 {[%emt 0:00:00]} 47. Ba2 {[%emt 0:00:00]} Kd6 {[%emt 0:00:00]} 48. Ke3 {[%emt 0:00:00]} Ba5 {[%emt 0:00:00]} 49. Ke2 {[%emt 0:00:00]} h6 {[%emt 0:01:32]} 50. Ke3 {[%emt 0:00:00]} Rd1 {[%emt 0:00:56]} 51. Kf3 {[%emt 0:00:00]} Rd3+ {[%emt 0:01:28]} 52. Ke2 {[%emt 0:00:00]} Rd4 {[%emt 0:00:12]} 53. Ke3 {[%emt 0:00:00]} Bb4 {[%emt 0:00:21]} 54. Ke2 {[%emt 0:00:00]} e5 {[%emt 0:00:10]} 55. fxe5+ {[%emt 0:00:00]} Kxe5 {[%emt 0:00:02]} 56. Ke3 {[%emt 0:03:38]} Rd1 {[%emt 0:00:04]} 57. Re2 {[%emt 0:00:37]} Bc3 {[%emt 0:01:37]} 58. Bb3 {[%emt 0:01:00]} Rd6 {[%emt 0:00:59]} 59. Kf3+ {[%emt 0:00:54]} Kf6 {[%emt 0:00:06]} 60. Ba2 {[%emt 0:00:51]} Bd2 {[%emt 0:01:12]} 61. Re4 {[%emt 0:01:05]} Rb6 {[%emt 0:01:21]} 62. Ra4 {[%emt 0:00:47]} Bb4 {[%emt 0:00:16]} 63. Ke4 {[%emt 0:00:23]} Rd6 {[%emt 0:00:02]} 64. Bd5 {[%emt 0:00:01]} Kg5 {[%emt 0:00:44]} 65. h3 {[%emt 0:01:03]} Kf6 {[%emt 0:01:57]} 66. Ra7 {[%emt 0:00:12]} Rd8 {[%emt 0:00:30]} 67. Ra6+ {[%emt 0:01:18]} Kg7 {[%emt 0:00:29]} 68. Ra7+ {[%emt 0:00:53]} Kf6 {[%emt 0:00:31]} 69. Ra6+ {[%emt 0:00:05]} Kg7 {[%emt 0:00:14]} 70. Ra7+ {[%emt 0:00:03]} Kf6 {[%emt 0:00:29]} 1/2-1/2

[Event "CZE Extraliga 2019-20"]
[Site "Czech Republic"]
[Date "2020.01.26"]
[Round "6"]
[White "Caletka, Radomir"]
[Black "Kulhanek, Tomas"]
[Result "1/2-1/2"]
[ECO "A46"]
[WhiteElo "2305"]
[BlackElo "2343"]
[Annotator "NA"]
[PlyCount "28"]
[EventDate "2019.09.15"]
[EventType "team-tourn"]
[EventCountry "CZE"]
[SourceTitle "playchess.com"]
[Source "ChessBase"]
[SourceQuality "1"]
[TimeControl "40/5400+30:1800+30"]

1. d4 Nf6 2. Nf3 e6 3. g3 b5 4. Bg2 d5 5. O-O c5 6. a4 b4 7. c4 bxc3 8. bxc3 Ba6 9. Ne5 Nbd7 10. Re1 $11 Bd6 11. Nxd7 Qxd7 12. Ba3 cxd4 13. cxd4 O-O 14. Nd2 Bxa3 1/2-1/2

[Event "CZE Extraliga 2019-20"]
[Site "Czech Republic"]
[Date "2020.01.26"]
[Round "6.2"]
[White "Balogh, Csaba"]
[Black "Ftacnik, Lubomir"]
[Result "1/2-1/2"]
[ECO "B91"]
[WhiteElo "2587"]
[BlackElo "2520"]
[Annotator "ChessBase"]
[PlyCount "126"]
[EventDate "2019.09.15"]
[EventType "team-tourn"]
[EventCountry "CZE"]
[SourceTitle "playchess.com"]
[Source "ChessBase"]
[SourceQuality "1"]
[TimeControl "40/5400+30:1800+30"]

1. e4 {[%emt 0:00:00]} c5 {[%emt 0:00:00]} 2. Nf3 {[%emt 0:00:00]} d6 {[%emt 0:00:00]} 3. d4 {[%emt 0:00:02]} cxd4 {[%emt 0:00:00]} 4. Nxd4 {[%emt 0:00:04]} Nf6 {[%emt 0:00:03]} 5. Nc3 {[%emt 0:00:08]} a6 {[%emt 0:00:07]} 6. g3 {[%emt 0:00:39]} e6 {[%emt 0:00:39]} 7. Bg2 {[%emt 0:00:27]} Be7 {[%emt 0:00:09]} 8. O-O {[%emt 0:00:54]} O-O {[%emt 0:00:12]} 9. b3 {[%emt 0:13:29]} Bd7 {[%emt 0:02:00]} 10. Bb2 {[%emt 0:08:48]} Nc6 {[%emt 0:00:26]} 11. Nce2 {[%emt 0:00:13]} Rc8 {[%emt 0:13:37]} 12. c4 {[%emt 0:04:27]} b5 {[%emt 0:02:29]} 13. cxb5 {[%emt 0:00:19]} Nxd4 {[%emt 0:00:07]} 14. Nxd4 {[%emt 0:00:10]} axb5 {[%emt 0:00:05]} 15. Qd2 {[%emt 0:00:15]} Qb6 {[%emt 0:01:21]} 16. Ba3 {[%emt 0:02:04]} Rfe8 {[%emt 0:06:17]} 17. Rfd1 {[%emt 0:11:25]} Bf8 {[%emt 0:03:59]} 18. Bb4 {[%emt 0:01:39]} h6 {[%emt 0:24:28]} 19. Qe3 {[%emt 0:09:09]} Ng4 {[%emt 0:08:36]} 20. Qe2 {[%emt 0:00:49]} Nf6 {[%emt 0:00:08]} 21. Qe3 {[%emt 0:09:28]} Ng4 {[%emt 0:00:08]} 22. Qe2 {[%emt 0:00:05]} Nf6 {[%emt 0:00:04]} 23. h3 {[%emt 0:00:13]} Rc7 {[%emt 0:14:24]} 24. Rd2 {[%emt 0:06:51]} Rec8 {[%emt 0:05:44]} 25. Rad1 {[%emt 0:01:48]} Rc1 {[%emt 0:01:32]} 26. Qe3 {[%emt 0:04:48]} Qb8 {[%emt 0:04:45]} 27. Qe1 {[%emt 0:06:57]} Rxd1 {[%emt 0:00:26]} 28. Rxd1 {[%emt 0:00:04]} Qa7 {[%emt 0:06:05]} 29. Qe2 {[%emt 0:01:38]} Qb6 {[%emt 0:00:18]} 30. Qe3 {[%emt 0:04:14]} Qb8 {[%emt 0:00:38]} 31. a3 {[%emt 0:03:24]} Rc7 {[%emt 0:02:41]} 32. Rc1 {[%emt 0:02:38]} Rxc1+ {[%emt 0:00:10]} 33. Qxc1 {[%emt 0:00:04]} Qb6 {[%emt 0:00:43]} 34. Qc3 {[%emt 0:00:26]} Ne8 {[%emt 0:00:44]} 35. Bf1 {[%emt 0:01:59]} Qb7 {[%emt 0:01:45]} 36. Qd3 {[%emt 0:02:52]} Nc7 {[%emt 0:00:45]} 37. Ba5 {[%emt 0:00:06]} d5 {[%emt 0:00:45]} 38. Bxc7 {[%emt 0:04:52]} Qxc7 {[%emt 0:00:06]} 39. exd5 {[%emt 0:00:03]} exd5 {[%emt 0:00:52]} 40. Nxb5 {[%emt 0:00:18]} Bxb5 {[%emt 0:00:54]} 41. Qxb5 {[%emt 0:30:20]} Bxa3 {[%emt 0:31:11]} 42. Qxd5 {[%emt 0:00:17]} Bc5 {[%emt 0:00:00]} 43. Kg2 {[%emt 0:00:00]} Qd6 {[%emt 0:00:00]} 44. Qa8+ {[%emt 0:00:00]} Qf8 {[%emt 0:00:00]} 45. Qf3 {[%emt 0:00:00]} g6 {[%emt 0:00:00]} 46. Bc4 {[%emt 0:00:00]} Qe7 {[%emt 0:00:00]} 47. Qf4 {[%emt 0:00:00]} Kg7 {[%emt 0:00:00]} 48. Qf3 {[%emt 0:00:00]} Qf6 {[%emt 0:00:00]} 49. Qe2 {[%emt 0:00:00]} Qc6+ {[%emt 0:00:43]} 50. Kg1 {[%emt 0:00:00]} Qd6 {[%emt 0:00:40]} 51. Kf1 {[%emt 0:00:00]} Qd4 {[%emt 0:00:31]} 52. Kg2 {[%emt 0:00:00]} h5 {[%emt 0:00:37]} 53. h4 {[%emt 0:00:00]} Qf6 {[%emt 0:00:47]} 54. Bd5 {[%emt 0:00:00]} Qd4 {[%emt 0:01:06]} 55. Bc4 {[%emt 0:02:01]} Qf6 {[%emt 0:00:41]} 56. Qd2 {[%emt 0:00:12]} Qd4 {[%emt 0:00:26]} 57. Qc2 {[%emt 0:01:41]} Kf8 {[%emt 0:00:49]} 58. Qe2 {[%emt 0:00:19]} Kg7 {[%emt 0:00:20]} 59. Kg1 {[%emt 0:00:27]} Qa1+ {[%emt 0:00:09]} 60. Kh2 {[%emt 0:00:08]} Qf6 {[%emt 0:00:11]} 61. Kg2 {[%emt 0:00:21]} Qd4 {[%emt 0:00:13]} 62. Qc2 {[%emt 0:01:42]} Kf8 {[%emt 0:00:19]} 63. Qe2 {[%emt 0:01:44]} Kg7 {[%emt 0:00:09]} 1/2-1/2

[Event "CZE Extraliga 2019-20"]
[Site "Czech Republic"]
[Date "2020.01.26"]
[Round "6.2"]
[White "Jakubiec, Artur"]
[Black "Cernousek, Lukas"]
[Result "1/2-1/2"]
[ECO "C42"]
[WhiteElo "2472"]
[BlackElo "2458"]
[Annotator "ChessBase"]
[PlyCount "30"]
[EventDate "2019.09.15"]
[EventType "team-tourn"]
[EventCountry "CZE"]
[SourceTitle "playchess.com"]
[Source "ChessBase"]
[SourceQuality "1"]
[TimeControl "40/5400+30:1800+30"]

1. e4 {[%emt 0:00:00]} e5 {[%emt 0:00:00]} 2. Nf3 {[%emt 0:00:09]} Nf6 {[%emt 0:00:00]} 3. d3 {[%emt 0:01:15]} Nc6 {[%emt 0:00:16]} 4. c3 {[%emt 0:00:27]} d5 {[%emt 0:00:24]} 5. Nbd2 {[%emt 0:00:08]} a5 {[%emt 0:00:27]} 6. Be2 {[%emt 0:00:21]} Bc5 {[%emt 0:00:05]} 7. O-O {[%emt 0:00:12]} O-O {[%emt 0:00:06]} 8. Qc2 {[%emt 0:12:32]} Re8 {[%emt 0:08:52]} 9. h3 {[%emt 0:08:37]} h6 {[%emt 0:14:55]} 10. Nh2 {[%emt 0:10:50]} a4 {[%emt 0:14:28]} 11. Re1 {[%emt 0:04:27]} Be6 {[%emt 0:01:35]} 12. Ndf1 {[%emt 0:03:11]} d4 {[%emt 0:14:09]} 13. Ng3 {[%emt 0:02:10]} Bb6 {[%emt 0:07:31]} 14. c4 {[%emt 0:06:59]} a3 {[%emt 0:00:21]} 15. bxa3 {[%emt 0:08:54]} Bc5 {[%emt 0:00:30]} 1/2-1/2